[Event "NJSK 2023 Jeugd C"]
[Site "Almelo, Netherlands"]
[Date "2023.05.01"]
[Round "2.13"]
[White "Frederiks, Jesse"]
[Black "Roorda, Cas"]
[Result "1-0"]
[TimeControl "90min/40moves + 30min + 30sec/move"]
[WhiteElo "1510"]
[BlackElo "1769"]

1. d4 {[%clk 01:30:59]} d5 {[%clk 01:30:56]} {[%emt 00:00:04]} 2. c4 {[%clk
01:31:25]} {[%emt 00:00:04]} c6 {[%clk 01:31:23]} {[%emt 00:00:03]} 3. Nc3
{[%clk 01:31:45]} {[%emt 00:00:10]} Nf6 {[%clk 01:31:48]} {[%emt 00:00:05]} 4.
Nf3 {[%clk 01:31:59]} {[%emt 00:00:16]} dxc4 {[%clk 01:32:12]} {[%emt
00:00:06]} 5. e4 {[%clk 01:31:58]} {[%emt 00:00:31]} b5 {[%clk 01:32:36]}
{[%emt 00:00:06]} 6. Qc2 {[%clk 01:28:02]} {[%emt 00:04:27]} Bb7 {[%clk
01:30:00]} {[%emt 00:03:05]} 7. Bg5 {[%clk 01:23:52]} {[%emt 00:04:39]} Nbd7
{[%clk 01:20:33]} {[%emt 00:09:58]} 8. e5 {[%clk 01:13:53]} {[%emt 00:10:29]}
Nd5 {[%clk 01:20:41]} {[%emt 00:00:22]} 9. Nxd5 {[%clk 01:13:06]} {[%emt
00:01:17]} cxd5 {[%clk 01:21:03]} {[%emt 00:00:08]} 10. Be2 {[%clk 01:10:41]}
{[%emt 00:02:55]} Qa5+ {[%clk 01:07:03]} {[%emt 00:14:29]} 11. Bd2 {[%clk
01:09:05]} {[%emt 00:02:06]} Qb6 {[%clk 01:03:22]} {[%emt 00:04:11]} 12. O-O
{[%clk 01:02:46]} {[%emt 00:06:49]} e6 {[%clk 01:03:08]} {[%emt 00:00:44]} 13.
b3 {[%clk 01:00:30]} {[%emt 00:02:45]} Be7 {[%clk 01:00:11]} {[%emt 00:03:28]}
14. a4 {[%clk 00:56:15]} {[%emt 00:04:46]} a6 {[%clk 00:56:13]} {[%emt
00:04:28]} 15. axb5 {[%clk 00:56:09]} {[%emt 00:00:35]} axb5 {[%clk 00:56:32]}
{[%emt 00:00:11]} 16. Rxa8+ {[%clk 00:55:53]} {[%emt 00:00:47]} Bxa8 {[%clk
00:56:59]} {[%emt 00:00:02]} 17. Ra1 {[%clk 00:47:36]} {[%emt 00:08:47]} O-O
{[%clk 00:43:39]} {[%emt 00:13:50]} 18. Ba5 {[%clk 00:33:23]} {[%emt 00:14:43]}
Qc6 {[%clk 00:41:40]} {[%emt 00:02:30]} 19. b4 {[%clk 00:31:34]} {[%emt
00:02:19]} f6 {[%clk 00:36:36]} {[%emt 00:05:32]} 20. Qc3 {[%clk 00:25:43]}
{[%emt 00:06:22]} fxe5 {[%clk 00:34:25]} {[%emt 00:02:42]} 21. dxe5 {[%clk
00:25:39]} {[%emt 00:00:33]} Rc8 {[%clk 00:10:20]} {[%emt 00:24:36]} 22. Nd4
{[%clk 00:25:34]} {[%emt 00:00:34]} Qb7 {[%clk 00:10:36]} {[%emt 00:00:13]} 23.
Bg4 {[%clk 00:24:32]} {[%emt 00:01:33]} Re8 {[%clk 00:03:39]} {[%emt 00:07:27]}
24. Bxe6+ {[%clk 00:23:54]} {[%emt 00:01:07]} Kh8 {[%clk 00:04:02]} {[%emt
00:00:08]} 25. Bf7 {[%clk 00:23:32]} {[%emt 00:00:52]} Rc8 {[%clk 00:03:24]}
{[%emt 00:01:08]} 26. Re1 {[%clk 00:21:49]} {[%emt 00:02:13]} Qb8 {[%clk
00:02:18]} {[%emt 00:01:37]} 27. Be6 {[%clk 00:21:53]} {[%emt 00:00:26]} Qb7
{[%clk 00:02:29]} {[%emt 00:00:19]} 28. Qh3 {[%clk 00:20:30]} {[%emt 00:01:52]}
Nb6 {[%clk 00:02:18]} {[%emt 00:00:42]} 29. Bxc8 {[%clk 00:20:39]} {[%emt
00:00:21]} Nxc8 {[%clk 00:02:47]} {[%emt 00:00:01]} 30. f4 {[%clk 00:20:17]}
{[%emt 00:00:51]} Nb6 {[%clk 00:02:45]} {[%emt 00:00:32]} 31. Bxb6 {[%clk
00:20:30]} {[%emt 00:00:18]} Qxb6 {[%clk 00:03:14]} {[%emt 00:00:01]} 32. Qc8+
{[%clk 00:20:49]} {[%emt 00:00:10]} Bd8 {[%clk 00:03:43]} 33. Kh1 {[%clk
00:20:38]} {[%emt 00:00:41]} Bb7 {[%clk 00:04:04]} {[%emt 00:00:10]} 34. Qd7
{[%clk 00:20:46]} {[%emt 00:00:22]} Bc6 {[%clk 00:04:23]} {[%emt 00:00:11]} 35.
Qxc6 {[%clk 00:21:02]} {[%emt 00:00:14]} Qxd4 {[%emt 00:00:09]} 36. Qe8# {[%clk
00:21:23]} {[%emt 00:00:06]} 1-0

[Event "NJSK 2023 Jeugd C"]
[Site "Almelo, Netherlands"]
[Date "2023.05.01"]
[Round "2.14"]
[White "Etienne, Ghilon"]
[Black "Zootjes, Aäron"]
[Result "1-0"]
[TimeControl "90min/40moves + 30min + 30sec/move"]
[WhiteElo "1673"]
[BlackElo "1172"]

1. e4 {[%clk 01:30:57]} {[%emt 00:00:02]} c5 {[%clk 01:30:53]} {[%emt
00:00:07]} 2. Nf3 {[%clk 01:31:21]} {[%emt 00:00:07]} Nc6 {[%clk 01:31:17]}
{[%emt 00:00:06]} 3. d4 {[%clk 01:31:45]} {[%emt 00:00:07]} cxd4 {[%clk
01:31:37]} {[%emt 00:00:08]} 4. Nxd4 {[%clk 01:32:11]} {[%emt 00:00:05]} e5
{[%clk 01:31:56]} {[%emt 00:00:11]} 5. Nb3 {[%clk 01:32:29]} {[%emt 00:00:12]}
Nf6 {[%clk 01:31:52]} {[%emt 00:00:33]} 6. Bd3 {[%clk 01:32:34]} {[%emt
00:00:26]} d5 {[%clk 01:31:59]} {[%emt 00:00:22]} 7. exd5 {[%clk 01:32:47]}
{[%emt 00:00:17]} Nxd5 {[%clk 01:31:05]} {[%emt 00:01:24]} 8. c3 {[%clk
01:18:18]} {[%emt 00:15:00]} Bd6 {[%clk 01:24:18]} {[%emt 00:07:17]} 9. O-O
{[%clk 01:09:23]} {[%emt 00:09:26]} O-O {[%clk 01:19:38]} {[%emt 00:05:09]} 10.
Bxh7+ {[%clk 01:06:16]} {[%emt 00:03:37]} Kxh7 {[%clk 01:19:36]} {[%emt
00:00:31]} 11. Qxd5 {[%clk 01:06:41]} {[%emt 00:00:06]} Kg8 {[%clk 01:18:54]}
{[%emt 00:01:12]} 12. Rd1 {[%clk 01:04:07]} {[%emt 00:03:05]} Bc7 {[%clk
01:18:05]} {[%emt 00:01:18]} 13. Qxd8 {[%clk 01:04:24]} {[%emt 00:00:13]} Rxd8
{[%clk 01:18:11]} {[%emt 00:00:24]} 14. Rxd8+ {[%clk 01:04:46]} {[%emt
00:00:09]} Bxd8 {[%clk 01:18:28]} {[%emt 00:00:12]} 15. Be3 {[%clk 01:05:07]}
{[%emt 00:00:09]} Bf5 {[%clk 01:17:36]} {[%emt 00:01:22]} 16. Na3 {[%clk
01:04:05]} {[%emt 00:01:32]} a6 {[%clk 01:12:41]} {[%emt 00:05:25]} 17. Rd1
{[%clk 00:57:12]} {[%emt 00:07:23]} Bc7 {[%clk 01:11:42]} {[%emt 00:01:29]} 18.
f3 {[%clk 00:44:13]} {[%emt 00:13:30]} Be6 {[%clk 01:04:24]} {[%emt 00:07:47]}
19. Kf2 {[%clk 00:30:47]} {[%emt 00:13:56]} b6 {[%clk 00:59:26]} {[%emt
00:05:28]} 20. Nc1 {[%clk 00:27:54]} {[%emt 00:03:23]} f6 {[%clk 00:54:27]}
{[%emt 00:05:29]} 21. b3 {[%clk 00:25:47]} {[%emt 00:02:37]} Kf7 {[%clk
00:47:50]} {[%emt 00:07:06]} 22. Nc4 {[%clk 00:23:32]} {[%emt 00:02:46]} Bxc4
{[%clk 00:44:56]} {[%emt 00:03:24]} 23. Rd7+ {[%clk 00:23:27]} {[%emt
00:00:35]} Ne7 {[%clk 00:41:08]} {[%emt 00:04:18]} 24. Rxc7 {[%clk 00:23:26]}
{[%emt 00:00:31]} Be6 {[%clk 00:41:01]} {[%emt 00:00:38]} 25. Bxb6 {[%clk
00:23:38]} {[%emt 00:00:18]} Ke8 {[%clk 00:38:46]} {[%emt 00:02:45]} 26. c4
{[%clk 00:19:24]} {[%emt 00:04:44]} Kf8 {[%clk 00:35:37]} {[%emt 00:03:38]} 27.
Bc5 {[%clk 00:19:04]} {[%emt 00:00:50]} Re8 {[%clk 00:35:54]} {[%emt 00:00:13]}
28. Nd3 {[%clk 00:19:19]} {[%emt 00:00:16]} a5 {[%clk 00:34:36]} {[%emt
00:01:47]} 29. Bd6 {[%clk 00:17:09]} {[%emt 00:02:36]} 1-0

[Event "NJSK 2023 Jeugd C"]
[Site "Almelo, Netherlands"]
[Date "2023.05.01"]
[Round "2.15"]
[White "Rooijakkers, Liam"]
[Black "Wortman, Rawi"]
[Result "0-1"]
[TimeControl "90min/40moves + 30min + 30sec/move"]
[WhiteElo "1322"]
[BlackElo "1668"]

1. e4 {[%clk 01:30:54]} {[%emt 00:00:04]} c5 {[%clk 01:30:57]} {[%emt
00:00:04]} 2. Nc3 {[%clk 01:31:11]} {[%emt 00:00:14]} d6 {[%clk 01:31:05]}
{[%emt 00:00:22]} 3. f4 {[%clk 01:31:28]} {[%emt 00:00:12]} Nc6 {[%clk
01:30:51]} {[%emt 00:00:44]} 4. Bc4 {[%clk 01:31:16]} {[%emt 00:00:42]} Nf6
{[%clk 01:30:04]} {[%emt 00:01:17]} 5. Nf3 {[%clk 01:30:43]} {[%emt 00:01:02]}
e6 {[%clk 01:26:46]} {[%emt 00:03:48]} 6. Bb5 {[%clk 01:25:47]} {[%emt
00:05:27]} Bd7 {[%clk 01:22:16]} {[%emt 00:05:01]} 7. Bxc6 {[%clk 01:24:17]}
{[%emt 00:02:00]} Bxc6 {[%clk 01:22:17]} {[%emt 00:00:29]} 8. d3 {[%clk
01:23:43]} {[%emt 00:01:04]} Be7 {[%clk 01:21:57]} {[%emt 00:00:49]} 9. O-O
{[%clk 01:23:12]} {[%emt 00:00:59]} O-O {[%clk 01:22:00]} {[%emt 00:00:29]} 10.
Qe1 {[%clk 01:21:58]} {[%emt 00:01:44]} Qc7 {[%clk 01:18:25]} {[%emt 00:04:04]}
11. Qg3 {[%clk 01:20:45]} {[%emt 00:01:42]} b5 {[%clk 01:13:59]} {[%emt
00:04:58]} 12. Be3 {[%clk 01:14:34]} {[%emt 00:06:41]} d5 {[%clk 01:11:20]}
{[%emt 00:03:08]} 13. exd5 {[%clk 01:09:29]} {[%emt 00:05:35]} Nxd5 {[%clk
01:10:29]} {[%emt 00:01:22]} 14. Nxd5 {[%clk 01:09:39]} {[%emt 00:00:20]} Bxd5
{[%clk 01:10:37]} {[%emt 00:00:22]} 15. Kh1 {[%clk 01:01:28]} {[%emt 00:08:40]}
Bf6 {[%clk 01:07:00]} {[%emt 00:04:07]} 16. c3 {[%clk 01:00:23]} {[%emt
00:01:36]} b4 {[%clk 01:05:15]} {[%emt 00:02:15]} 17. c4 {[%clk 00:51:05]}
{[%emt 00:09:48]} Bxf3 {[%clk 01:04:59]} {[%emt 00:00:46]} 18. Qxf3 {[%clk
00:51:20]} {[%emt 00:00:14]} Bxb2 {[%clk 01:05:05]} {[%emt 00:00:24]} 19. Rab1
{[%clk 00:51:30]} {[%emt 00:00:21]} Bc3 {[%clk 01:04:34]} {[%emt 00:01:00]} 20.
Qh5 {[%clk 00:51:27]} {[%emt 00:00:33]} Rac8 {[%clk 01:03:17]} {[%emt
00:01:47]} 21. Rf3 {[%emt 00:09:35]} g6 {[%clk 00:59:36]} 22. Qh4 {[%clk
00:45:08]} {[%emt 00:01:55]} Qd8 {[%clk 00:58:57]} {[%emt 00:01:08]} 23. Qxd8
{[%clk 00:43:03]} {[%emt 00:02:35]} Rfxd8 {[%clk 00:59:11]} {[%emt 00:00:15]}
24. Bf2 {[%clk 00:43:29]} {[%emt 00:00:04]} Rd6 {[%clk 00:57:47]} {[%emt
00:01:55]} 25. Rd1 {[%clk 00:42:17]} {[%emt 00:01:42]} Ra6 {[%clk 00:57:46]}
{[%emt 00:00:31]} 26. d4 {[%clk 00:41:32]} {[%emt 00:01:14]} cxd4 {[%clk
00:57:37]} {[%emt 00:00:39]} 27. Bxd4 {[%clk 00:38:10]} {[%emt 00:03:51]} Rd8
{[%clk 00:57:06]} {[%emt 00:01:02]} 28. Rfd3 {[%clk 00:38:36]} {[%emt
00:00:04]} Rad6 {[%clk 00:57:09]} {[%emt 00:00:26]} 0-1

[Event "NJSK 2023 Jeugd C"]
[Site "Almelo, Netherlands"]
[Date "2023.05.02"]
[Round "3.1"]
[White "Madularea, David"]
[Black "Krylov, Philippe"]
[Result "1/2-1/2"]
[TimeControl "90min/40moves + 30min + 30sec/move"]
[WhiteElo "1895"]
[BlackElo "1858"]

1. e4 {[%clk 01:30:56]} {[%emt 00:00:03]} c6 {[%clk 01:30:59]} {[%emt
00:00:02]} 2. d4 {[%clk 01:31:17]} {[%emt 00:00:08]} d5 {[%clk 01:31:24]}
{[%emt 00:00:05]} 3. e5 {[%clk 01:31:41]} {[%emt 00:00:06]} Bf5 {[%clk
01:31:52]} {[%emt 00:00:04]} 4. h4 {[%clk 01:32:04]} {[%emt 00:00:06]} h5
{[%clk 01:32:19]} {[%emt 00:00:04]} 5. Bd3 {[%clk 01:32:28]} {[%emt 00:00:05]}
Bxd3 {[%clk 01:32:45]} {[%emt 00:00:04]} 6. Qxd3 {[%clk 01:32:53]} {[%emt
00:00:05]} Qa5+ {[%clk 01:33:12]} {[%emt 00:00:03]} 7. Nd2 {[%clk 01:33:14]}
{[%emt 00:00:08]} e6 {[%clk 01:33:39]} {[%emt 00:00:04]} 8. Ngf3 {[%clk
01:33:30]} {[%emt 00:00:13]} Qa6 {[%clk 01:34:05]} {[%emt 00:00:06]} 9. c4
{[%clk 01:33:54]} {[%emt 00:00:05]} Ne7 {[%clk 01:34:32]} {[%emt 00:00:03]} 10.
O-O {[%clk 01:34:11]} {[%emt 00:00:13]} Nf5 {[%clk 01:34:56]} {[%emt 00:00:07]}
11. b3 {[%clk 01:34:30]} {[%emt 00:00:10]} Be7 {[%clk 01:35:16]} {[%emt
00:00:10]} 12. a4 {[%clk 01:34:52]} {[%emt 00:00:08]} Qa5 {[%clk 01:35:29]}
{[%emt 00:00:18]} 13. Ba3 {[%clk 01:05:51]} {[%emt 00:29:31]} Bxa3 {[%emt
00:00:11]} 14. Rxa3 {[%clk 01:06:14]} Na6 {[%clk 01:35:59]} {[%emt 00:00:24]}
15. b4 {[%clk 01:02:42]} {[%emt 00:04:01]} Nxb4 {[%clk 01:36:16]} {[%emt
00:00:14]} 16. Qc3 {[%clk 01:03:07]} {[%emt 00:00:05]} c5 {[%clk 01:36:44]}
{[%emt 00:00:03]} 17. Nb3 {[%clk 01:03:19]} {[%emt 00:00:17]} Qc7 {[%clk
01:21:57]} {[%emt 00:15:16]} 18. Nxc5 {[%clk 01:03:05]} {[%emt 00:00:45]} a5
{[%clk 01:22:01]} {[%emt 00:00:26]} 19. Rc1 {[%clk 00:56:30]} {[%emt 00:07:04]}
dxc4 {[%clk 01:09:40]} {[%emt 00:12:52]} 20. Qxc4 {[%clk 00:55:07]} {[%emt
00:01:52]} O-O {[%clk 01:08:44]} {[%emt 00:01:27]} 21. Qb5 {[%clk 00:50:33]}
{[%emt 00:05:04]} Rfc8 {[%clk 01:01:20]} {[%emt 00:07:53]} 22. Nd3 {[%clk
00:31:56]} {[%emt 00:19:07]} Qe7 {[%clk 01:00:03]} {[%emt 00:01:48]} 23. Rxc8+
{[%clk 00:31:15]} {[%emt 00:01:10]} Rxc8 {[%clk 01:00:28]} {[%emt 00:00:05]} 24.
g3 {[%clk 00:29:01]} {[%emt 00:02:44]} Nd5 {[%clk 00:49:23]} {[%emt 00:11:33]}
25. Rb3 {[%clk 00:25:18]} {[%emt 00:04:15]} b6 {[%clk 00:48:29]} {[%emt
00:01:25]} 26. Qa6 {[%clk 00:21:19]} {[%emt 00:04:29]} Qd8 {[%clk 00:39:59]}
{[%emt 00:09:00]} 27. Rb1 {[%clk 00:18:11]} {[%emt 00:03:38]} Rc3 {[%clk
00:36:39]} {[%emt 00:03:50]} 28. Rc1 {[%clk 00:17:48]} {[%emt 00:00:52]} Rxc1+
{[%clk 00:22:02]} {[%emt 00:15:06]} 29. Nxc1 {[%clk 00:17:43]} {[%emt
00:00:35]} g6 {[%clk 00:21:23]} {[%emt 00:01:10]} 30. Nb3 {[%clk 00:15:33]}
{[%emt 00:02:39]} Qc7 {[%clk 00:21:09]} {[%emt 00:00:44]} 31. Nbd2 {[%clk
00:15:18]} {[%emt 00:00:44]} Qc6 {[%clk 00:20:33]} {[%emt 00:01:06]} 32. Qc4
{[%clk 00:12:18]} {[%emt 00:03:31]} Qxc4 {[%clk 00:17:12]} {[%emt 00:03:51]}
1/2-1/2

[Event "NJSK 2023 Jeugd C"]
[Site "Almelo, Netherlands"]
[Date "2023.05.02"]
[Round "3.2"]
[White "Wink, Luka"]
[Black "Kurt, Sascha"]
[Result "1/2-1/2"]
[TimeControl "90min/40moves + 30min + 30sec/move"]
[WhiteElo "1849"]
[BlackElo "1894"]

1. e4 {[%clk 01:30:43]} {[%emt 00:00:16]} c5 {[%clk 01:30:51]} {[%emt
00:00:09]} 2. Nf3 {[%clk 01:30:48]} {[%emt 00:00:25]} e6 {[%clk 01:31:13]}
{[%emt 00:00:08]} 3. d4 {[%clk 01:31:01]} {[%emt 00:00:16]} cxd4 {[%clk
01:31:35]} {[%emt 00:00:08]} 4. Nxd4 {[%clk 01:31:11]} {[%emt 00:00:20]} Nf6
{[%clk 01:31:57]} {[%emt 00:00:08]} 5. Nc3 {[%clk 01:31:34]} {[%emt 00:00:07]}
d6 {[%clk 01:32:18]} {[%emt 00:00:09]} 6. g4 {[%clk 01:31:40]} {[%emt
00:00:23]} h6 {[%clk 01:32:38]} {[%emt 00:00:11]} 7. h4 {[%clk 01:31:54]}
{[%emt 00:00:16]} Nc6 {[%clk 01:32:56]} {[%emt 00:00:12]} 8. g5 {[%clk
01:31:41]} {[%emt 00:00:43]} hxg5 {[%clk 01:30:00]} {[%emt 00:03:26]} 9. Bxg5
{[%clk 01:32:03]} {[%emt 00:00:08]} Be7 {[%clk 01:27:05]} {[%emt 00:03:25]} 10.
Nxc6 {[%clk 01:31:55]} {[%emt 00:00:38]} bxc6 {[%clk 01:27:25]} {[%emt
00:00:11]} 11. Qf3 {[%clk 01:31:57]} {[%emt 00:00:28]} e5 {[%clk 01:15:23]}
{[%emt 00:12:32]} 12. Rg1 {[%clk 01:31:28]} {[%emt 00:00:58]} Be6 {[%clk
01:10:20]} {[%emt 00:05:32]} 13. O-O-O {[%clk 01:27:53]} {[%emt 00:04:06]} Nh5
{[%clk 01:07:27]} {[%emt 00:03:24]} 14. Qd3 {[%clk 01:21:13]} {[%emt 00:07:09]}
Qc7 {[%clk 01:00:29]} {[%emt 00:07:27]} 15. Be2 {[%clk 01:08:23]} {[%emt
00:13:20]} g6 {[%clk 00:57:18]} {[%emt 00:03:41]} 16. Qa6 {[%clk 00:56:33]}
{[%emt 00:12:20]} Qb6 {[%clk 00:48:57]} {[%emt 00:08:50]} 17. Qa3 {[%clk
00:46:56]} {[%emt 00:10:08]} Rd8 {[%clk 00:36:20]} {[%emt 00:13:07]} 18. b4
{[%clk 00:36:31]} {[%emt 00:10:55]} Nf4 {[%clk 00:29:38]} {[%emt 00:07:11]} 19.
Ba6 {[%clk 00:31:38]} {[%emt 00:05:23]} Nh3 {[%clk 00:23:36]} {[%emt 00:06:32]}
20. Be3 {[%clk 00:28:07]} {[%emt 00:04:02]} Qc7 {[%clk 00:22:44]} {[%emt
00:01:22]} 21. Rh1 {[%clk 00:26:40]} {[%emt 00:01:57]} Nf4 {[%clk 00:22:19]}
{[%emt 00:00:54]} 22. Qa4 {[%clk 00:19:39]} {[%emt 00:07:32]} Kf8 {[%clk
00:18:51]} {[%emt 00:03:57]} 23. b5 {[%clk 00:17:13]} {[%emt 00:02:58]} cxb5
{[%clk 00:15:47]} {[%emt 00:03:35]} 24. Nxb5 {[%clk 00:17:10]} {[%emt
00:00:32]} Qc4 {[%clk 00:15:41]} {[%emt 00:00:36]} 25. Qxc4 {[%clk 00:17:07]}
{[%emt 00:00:33]} Bxc4 {[%clk 00:16:10]} 26. a4 {[%clk 00:15:42]} {[%emt
00:01:55]} Rxh4 {[%clk 00:15:52]} {[%emt 00:00:47]} 27. Rxh4 {[%clk 00:15:18]}
{[%emt 00:00:54]} Bxh4 {[%clk 00:16:21]} {[%emt 00:00:01]} 28. Bb7 {[%clk
00:15:18]} {[%emt 00:00:31]} Bxb5 {[%clk 00:15:10]} {[%emt 00:01:41]} 29. axb5
{[%clk 00:15:47]} {[%emt 00:00:01]} Ng2 {[%clk 00:14:41]} {[%emt 00:01:00]} 30.
Kd2 {[%clk 00:11:52]} {[%emt 00:04:24]} Nxe3 {[%clk 00:14:12]} {[%emt
00:00:59]} 31. Kxe3 {[%clk 00:12:21]} {[%emt 00:00:02]} Bg5+ {[%clk 00:13:06]}
{[%emt 00:01:36]} 32. Ke2 {[%clk 00:11:36]} {[%emt 00:01:15]} Be7 {[%clk
00:11:42]} {[%emt 00:01:53]} 33. Ra1 {[%clk 00:11:38]} {[%emt 00:00:28]} Rd7
{[%clk 00:11:42]} {[%emt 00:00:30]} 34. Rxa7 {[%emt 00:02:27]} Bd8 35. Ra8
{[%emt 00:00:02]} Rxb7 {[%emt 00:00:01]} 36. Rxd8+ {[%emt 00:00:01]} Ke7
1/2-1/2

[Event "NJSK 2023 Jeugd C"]
[Site "Almelo, Netherlands"]
[Date "2023.05.02"]
[Round "3.3"]
[White "Roolvink, William"]
[Black "Arnold, Rhys"]
[Result "0-1"]
[TimeControl "90min/40moves + 30min + 30sec/move"]
[WhiteElo "1852"]
[BlackElo "2003"]

1. e4 {[%clk 01:30:58]} {[%emt 00:00:02]} c5 {[%clk 01:30:57]} {[%emt
00:00:03]} 2. Nc3 {[%clk 01:31:27]} {[%emt 00:00:02]} Nc6 {[%clk 01:31:22]}
{[%emt 00:00:04]} 3. Bb5 {[%clk 01:31:55]} {[%emt 00:00:01]} Nd4 {[%clk
01:28:32]} {[%emt 00:03:21]} 4. Nf3 {[%clk 01:32:16]} {[%emt 00:00:09]} e6
{[%clk 01:28:34]} {[%emt 00:00:27]} 5. O-O {[%clk 01:28:05]} {[%emt 00:04:42]}
a6 {[%clk 01:29:00]} {[%emt 00:00:04]} 6. Bd3 {[%clk 01:28:26]} {[%emt
00:00:09]} Nc6 {[%clk 01:29:24]} {[%emt 00:00:07]} 7. Re1 {[%clk 01:25:56]}
{[%emt 00:02:59]} g5 {[%clk 01:21:54]} {[%emt 00:07:59]} 8. h3 {[%clk
01:13:12]} {[%emt 00:13:15]} h5 {[%clk 01:18:44]} {[%emt 00:03:40]} 9. Nh2
{[%clk 01:09:16]} {[%emt 00:04:25]} Bd6 {[%clk 01:05:55]} {[%emt 00:13:20]} 10.
Bf1 {[%clk 00:46:17]} {[%emt 00:23:28]} g4 {[%clk 00:50:55]} {[%emt 00:15:31]}
11. g3 {[%clk 00:38:43]} {[%emt 00:08:04]} h4 {[%clk 00:45:24]} {[%emt
00:06:01]} 12. Qxg4 {[%clk 00:31:20]} {[%emt 00:07:52]} hxg3 {[%clk 00:30:33]}
{[%emt 00:15:23]} 13. fxg3 {[%clk 00:30:16]} {[%emt 00:01:33]} Nf6 {[%clk
00:28:38]} {[%emt 00:02:26]} 14. Qf3 {[%clk 00:28:42]} {[%emt 00:02:04]} Nd4
{[%clk 00:28:19]} {[%emt 00:00:49]} 15. Qd3 {[%clk 00:23:49]} {[%emt 00:05:23]}
Qc7 {[%clk 00:27:42]} {[%emt 00:01:07]} 16. Re3 {[%clk 00:21:16]} {[%emt
00:03:02]} Rg8 {[%clk 00:24:01]} {[%emt 00:04:12]} 17. Ne2 {[%clk 00:18:39]}
{[%emt 00:03:07]} Be5 {[%clk 00:20:19]} {[%emt 00:04:12]} 18. Nxd4 {[%clk
00:08:55]} {[%emt 00:10:13]} Bxd4 {[%clk 00:18:56]} {[%emt 00:01:53]} 19. g4
{[%clk 00:05:58]} {[%emt 00:03:27]} d5 {[%clk 00:10:38]} {[%emt 00:08:48]} 20.
e5 {[%clk 00:04:29]} {[%emt 00:02:00]} Qxe5 {[%clk 00:09:48]} {[%emt 00:01:20]}
21. Nf3 {[%clk 00:04:00]} {[%emt 00:00:58]} Bxe3+ {[%clk 00:10:06]} {[%emt
00:00:13]} 22. dxe3 {[%clk 00:03:30]} {[%emt 00:00:59]} Qg3+ {[%clk 00:09:01]}
{[%emt 00:01:34]} 23. Bg2 {[%clk 00:03:11]} {[%emt 00:00:50]} Bd7 {[%clk
00:06:56]} {[%emt 00:02:35]} 24. b3 {[%clk 00:03:02]} {[%emt 00:00:39]} Bb5
{[%clk 00:05:39]} {[%emt 00:01:48]} 25. c4 {[%clk 00:01:54]} {[%emt 00:01:38]}
dxc4 {[%clk 00:06:00]} {[%emt 00:00:09]} 26. bxc4 {[%clk 00:02:22]} Rd8 {[%clk
00:06:05]} {[%emt 00:00:26]} 27. Qc2 {[%clk 00:01:00]} {[%emt 00:01:53]} Bc6
{[%clk 00:05:40]} {[%emt 00:00:55]} 28. Bb2 {[%clk 00:01:00]} {[%emt 00:00:30]}
Bxf3 {[%clk 00:05:46]} {[%emt 00:00:24]} 29. Bxf6 {[%clk 00:01:20]} {[%emt
00:00:10]} Bxg2 {[%clk 00:06:11]} {[%emt 00:00:04]} 30. Qxg2 {[%clk 00:01:29]}
{[%emt 00:00:20]} Qxe3+ {[%clk 00:06:14]} {[%emt 00:00:28]} 31. Qf2 {[%clk
00:01:41]} {[%emt 00:00:19]} Qxf2+ {[%clk 00:06:31]} {[%emt 00:00:13]} 32. Kxf2
{[%clk 00:02:10]} Rd7 {[%clk 00:06:40]} {[%emt 00:00:21]} 33. g5 {[%clk
00:02:03]} {[%emt 00:00:37]} Rd6 {[%clk 00:05:26]} {[%emt 00:01:44]} 34. h4
{[%clk 00:02:07]} {[%emt 00:00:26]} Kd7 {[%clk 00:04:33]} {[%emt 00:01:23]} 35.
Ke3 {[%clk 00:01:08]} {[%emt 00:01:29]} e5 {[%clk 00:04:29]} {[%emt 00:00:33]}
36. Rf1 {[%clk 00:00:40]} {[%emt 00:00:58]} b5 {[%clk 00:01:53]} {[%emt
00:03:07]} 37. h5 {[%clk 00:00:36]} {[%emt 00:00:33]} bxc4 {[%clk 00:01:29]}
{[%emt 00:00:55]} 38. h6 {[%clk 00:00:53]} {[%emt 00:00:13]} Rxf6 {[%emt
00:01:32]} 39. Rxf6 {[%clk 00:00:54]} {[%emt 00:00:22]} Rxg5 {[%clk 00:00:58]}
{[%emt 00:00:05]} 40. Rxf7+ {[%clk 00:00:49]} {[%emt 00:00:35]} Ke6 {[%clk
00:01:23]} {[%emt 00:00:05]} 41. Ra7 {[%clk 00:01:00]} {[%emt 00:00:18]} Rh5
{[%clk 00:01:46]} {[%emt 00:00:07]} 42. Rxa6+ {[%clk 00:01:19]} {[%emt
00:00:11]} Kd5 {[%clk 00:02:10]} {[%emt 00:00:06]} 43. a4 {[%clk 00:01:01]}
{[%emt 00:00:48]} c3 {[%clk 00:02:35]} {[%emt 00:00:06]} 44. Kd3 {[%clk
00:00:51]} {[%emt 00:00:40]} Rh3+ {[%clk 00:02:59]} {[%emt 00:00:06]} 45. Kc2
{[%clk 00:01:11]} {[%emt 00:00:10]} Kc4 {[%clk 00:02:27]} {[%emt 00:01:02]} 46.
Rb6 {[%clk 00:00:49]} {[%emt 00:00:52]} Rh2+ {[%clk 00:02:51]} {[%emt
00:00:06]} 47. Kc1 {[%clk 00:00:43]} {[%emt 00:00:36]} e4 {[%clk 00:02:28]}
{[%emt 00:00:53]} 48. a5 {[%clk 00:00:32]} {[%emt 00:00:41]} Rh1+ {[%clk
00:02:06]} {[%emt 00:00:52]} 49. Kc2 {[%clk 00:00:56]} {[%emt 00:00:06]} Rh2+
{[%clk 00:02:34]} {[%emt 00:00:01]} 50. Kc1 {[%clk 00:01:25]} {[%emt 00:00:01]}
e3 {[%clk 00:02:41]} {[%emt 00:00:23]} 51. a6 {[%clk 00:00:32]} {[%emt
00:01:24]} e2 {[%emt 00:00:09]} 52. Re6 {[%clk 00:00:35]} {[%emt 00:00:22]}
Rh1+ {[%clk 00:03:28]} {[%emt 00:00:09]} 53. Kc2 {[%clk 00:00:55]} {[%emt
00:00:10]} e1=Q {[%clk 00:03:45]} {[%emt 00:00:13]} 54. Rxe1 {[%clk 00:01:23]}
{[%emt 00:00:02]} Rxe1 {[%clk 00:04:07]} {[%emt 00:00:09]} 55. a7 {[%clk
00:01:28]} {[%emt 00:00:25]} Re8 {[%clk 00:04:31]} {[%emt 00:00:05]} 56. h7
{[%clk 00:01:03]} {[%emt 00:00:56]} Kb4 {[%clk 00:04:52]} {[%emt 00:00:09]} 57.
Kc1 {[%clk 00:01:13]} {[%emt 00:00:19]} Kb3 {[%clk 00:05:09]} {[%emt 00:00:13]}
58. Kd1 {[%clk 00:01:30]} {[%emt 00:00:13]} c2+ {[%clk 00:05:33]} {[%emt
00:00:06]} 59. Kd2 {[%clk 00:01:42]} {[%emt 00:00:18]} Kb2 {[%clk 00:05:48]}
{[%emt 00:00:15]} 60. a8=Q {[%emt 00:00:33]} Rxa8 {[%clk 00:06:05]} {[%emt
00:00:10]} 61. h8=Q+ {[%clk 00:01:55]} {[%emt 00:00:17]} Rxh8 {[%clk 00:06:27]}
{[%emt 00:00:07]} 62. Kd3 {[%clk 00:02:09]} {[%emt 00:00:16]} c1=Q {[%clk
00:06:35]} {[%emt 00:00:22]} 0-1